[Event "Titled Tuesday Blitz January 10 Late 2023"]
[White "Martinez, Marcel"]
[Black "ritanovikova"]
[WhiteFideId "2016249"]
[WhiteElo "2402"]
[BlackElo "2115"]
[Result "1-0"]
[Round "01"]
[TimeControl "180+2"]
[Date "2023.01.10"]
[WhiteClock "0:00:48"]
[BlackClock "0:00:23"]

1. e4 {[%clk 0:00:00]}  d5 {[%clk 0:00:00]} 2. exd5 {[%clk 0:02:59]}  Qxd5 {[%clk 0:02:54]} 3. Nc3 {[%clk 0:02:58]}  Qd6 {[%clk 0:02:53]} 4. g3 {[%clk 0:02:58]}  Nf6 {[%clk 0:02:52]} 5. Bg2 {[%clk 0:02:58]}  a6 {[%clk 0:02:50]} 6. Nge2 {[%clk 0:02:57]}  Nc6 {[%clk 0:02:49]} 7. O-O {[%clk 0:02:50]}  e5 {[%clk 0:02:44]} 8. d3 {[%clk 0:02:39]}  Bg4 {[%clk 0:02:43]} 9. h3 {[%clk 0:02:38]}  Bh5 {[%clk 0:02:41]} 10. g4 {[%clk 0:02:37]}  Bg6 {[%clk 0:02:41]} 11. f4 {[%clk 0:02:34]}  Qc5+ {[%clk 0:02:41]} 12. Kh1 {[%clk 0:02:29]}  exf4 {[%clk 0:02:32]} 13. Bxf4 {[%clk 0:02:27]}  O-O-O {[%clk 0:02:27]} 14. a3 {[%clk 0:02:26]}  Bd6 {[%clk 0:02:19]} 15. b4 {[%clk 0:02:22]}  Qa7 {[%clk 0:02:03]} 16. b5 {[%clk 0:02:21]}  Ne7 {[%clk 0:02:01]} 17. bxa6 {[%clk 0:02:16]}  Qxa6 {[%clk 0:01:57]} 18. Rb1 {[%clk 0:02:09]}  Nc6 {[%clk 0:01:58]} 19. Bxd6 {[%clk 0:02:07]}  Rxd6 {[%clk 0:01:54]} 20. Rf4 {[%clk 0:02:01]}  Qxa3 {[%clk 0:01:53]} 21. Nb5 {[%clk 0:02:02]}  Qc5 {[%clk 0:01:37]} 22. Rc4 {[%clk 0:01:45]}  Qf2 {[%clk 0:01:32]} 23. Nxd6+ {[%clk 0:01:37]}  cxd6 {[%clk 0:01:23]} 24. Qf1 {[%clk 0:01:35]}  Qxf1+ {[%clk 0:01:19]} 25. Rxf1 {[%clk 0:01:15]}  d5 {[%clk 0:01:09]} 26. Rc5 {[%clk 0:01:15]}  h6 {[%clk 0:01:08]} 27. Nf4 {[%clk 0:01:13]}  h5 {[%clk 0:01:02]} 28. g5 {[%clk 0:01:13]}  Nd7 {[%clk 0:00:50]} 29. Rxd5 {[%clk 0:01:11]}  Nb6 {[%clk 0:00:45]} 30. Rb5 {[%clk 0:01:11]}  Kc7 {[%clk 0:00:42]} 31. Rfb1 {[%clk 0:01:08]}  Nd7 {[%clk 0:00:40]} 32. Rxb7+ {[%clk 0:01:07]}  Kd6 {[%clk 0:00:32]} 33. d4 {[%clk 0:01:07]}  Rb8 {[%clk 0:00:31]} 34. Bxc6 {[%clk 0:00:55]}  Rxb7 {[%clk 0:00:28]} 35. Bxb7 {[%clk 0:00:49]}  Bxc2 {[%clk 0:00:23]} 36. Re1 {[%clk 0:00:48]} 1-0


[Site "https://www.chess.com"]

[Event "Titled Tuesday Blitz January 10 Late 2023"]
[White "Wanger, Tamas"]
[Black "Fiorito, Francisco"]
[WhiteFideId "740454"]
[BlackFideId "180165"]
[WhiteElo "1951"]
[BlackElo "2305"]
[Result "1-0"]
[Round "01"]
[TimeControl "180+2"]
[Date "2023.01.10"]
[WhiteClock "0:00:16"]
[BlackClock "0:00:41"]

1. Nf3 {[%clk 0:00:00]}  Nf6 {[%clk 0:00:00]} 2. b3 {[%clk 0:02:59]}  g6 {[%clk 0:02:58]} 3. Bb2 {[%clk 0:02:59]}  Bg7 {[%clk 0:02:58]} 4. e3 {[%clk 0:02:59]}  O-O {[%clk 0:02:59]} 5. c4 {[%clk 0:02:59]}  c5 {[%clk 0:02:58]} 6. Be2 {[%clk 0:03:00]}  d5 {[%clk 0:02:58]} 7. cxd5 {[%clk 0:02:58]}  Qxd5 {[%clk 0:02:58]} 8. O-O {[%clk 0:02:58]}  Nc6 {[%clk 0:02:58]} 9. Nc3 {[%clk 0:02:57]}  Qd7 {[%clk 0:02:58]} 10. Rc1 {[%clk 0:02:57]}  b6 {[%clk 0:02:56]} 11. Qc2 {[%clk 0:02:54]}  Bb7 {[%clk 0:02:56]} 12. Rfd1 {[%clk 0:02:37]}  e5 {[%clk 0:02:52]} 13. d3 {[%clk 0:02:37]}  Rfe8 {[%clk 0:02:39]} 14. Ne4 {[%clk 0:02:26]}  Nd5 {[%clk 0:02:35]} 15. a3 {[%clk 0:02:23]}  f5 {[%clk 0:02:30]} 16. Nc3 {[%clk 0:02:18]}  Rad8 {[%clk 0:02:29]} 17. Nxd5 {[%clk 0:02:19]}  Qxd5 {[%clk 0:02:26]} 18. d4 {[%clk 0:02:15]}  Kh8 {[%clk 0:02:27]} 19. dxe5 {[%clk 0:02:16]}  Qe4 {[%clk 0:01:58]} 20. Qxe4 {[%clk 0:01:23]}  fxe4 {[%clk 0:01:52]} 21. Ng5 {[%clk 0:01:06]}  Kg8 {[%clk 0:01:52]} 22. Bc4+ {[%clk 0:01:07]}  Kf8 {[%clk 0:01:05]} 23. Ne6+ {[%clk 0:01:06]}  Rxe6 {[%clk 0:01:03]} 24. Bxe6 {[%clk 0:01:00]}  Ke7 {[%clk 0:01:03]} 25. Bd5 {[%clk 0:01:00]}  Rf8 {[%clk 0:01:01]} 26. Bxe4 {[%clk 0:00:54]}  Na5 {[%clk 0:01:00]} 27. Bxb7 {[%clk 0:00:52]}  Nxb7 {[%clk 0:01:00]} 28. b4 {[%clk 0:00:50]}  Ke6 {[%clk 0:01:01]} 29. f4 {[%clk 0:00:47]}  g5 {[%clk 0:00:59]} 30. g3 {[%clk 0:00:43]}  h5 {[%clk 0:00:52]} 31. bxc5 {[%clk 0:00:40]}  Nxc5 {[%clk 0:00:52]} 32. Rd6+ {[%clk 0:00:32]}  Kf5 {[%clk 0:00:52]} 33. Bd4 {[%clk 0:00:32]}  Ne4 {[%clk 0:00:52]} 34. Rd7 {[%clk 0:00:23]}  Bh8 {[%clk 0:00:51]} 35. Rcc7 {[%clk 0:00:22]}  Kg4 {[%clk 0:00:52]} 36. Kg2 {[%clk 0:00:20]}  Re8 {[%clk 0:00:48]} 37. Rf7 {[%clk 0:00:19]}  h4 {[%clk 0:00:42]} 38. h3+ {[%clk 0:00:18]}  Kh5 {[%clk 0:00:40]} 39. g4+ {[%clk 0:00:18]}  Kh6 {[%clk 0:00:41]} 40. Rh7+ {[%clk 0:00:18]}  Kg6 {[%clk 0:00:41]} 41. f5# {[%clk 0:00:16]} 1-0


[Site "https://www.chess.com"]

[Event "Titled Tuesday Blitz January 10 Late 2023"]
[White "Petukhov, Dmitry"]
[Black "Souza, Gustavo Horokoski De"]
[WhiteFideId "4142748"]
[BlackFideId "2146584"]
[WhiteElo "2350"]
[BlackElo "1943"]
[Result "1-0"]
[Round "01"]
[TimeControl "180+2"]
[Date "2023.01.10"]
[WhiteClock "0:00:22"]
[BlackClock "0:00:06"]

1. e4 {[%clk 0:00:00]}  e6 {[%clk 0:00:00]} 2. d4 {[%clk 0:03:00]}  d5 {[%clk 0:02:57]} 3. e5 {[%clk 0:03:00]}  c5 {[%clk 0:02:55]} 4. c3 {[%clk 0:03:00]}  Nc6 {[%clk 0:02:55]} 5. Nf3 {[%clk 0:03:00]}  Nge7 {[%clk 0:02:55]} 6. a3 {[%clk 0:03:00]}  c4 {[%clk 0:02:52]} 7. g3 {[%clk 0:02:59]}  Qb6 {[%clk 0:02:51]} 8. Nbd2 {[%clk 0:02:55]}  Bd7 {[%clk 0:02:46]} 9. Bh3 {[%clk 0:02:54]}  Na5 {[%clk 0:02:43]} 10. O-O {[%clk 0:02:53]}  Nb3 {[%clk 0:02:42]} 11. Nxb3 {[%clk 0:02:53]}  Ba4 {[%clk 0:02:41]} 12. Qe2 {[%clk 0:02:52]}  Bxb3 {[%clk 0:02:41]} 13. Be3 {[%clk 0:02:46]}  Nc6 {[%clk 0:02:39]} 14. Bg2 {[%clk 0:02:46]}  Be7 {[%clk 0:02:35]} 15. h3 {[%clk 0:02:44]}  O-O-O {[%clk 0:02:32]} 16. Nh2 {[%clk 0:02:41]}  h5 {[%clk 0:02:32]} 17. f4 {[%clk 0:02:41]}  Rdg8 {[%clk 0:02:26]} 18. f5 {[%clk 0:02:41]}  Qd8 {[%clk 0:02:20]} 19. fxe6 {[%clk 0:02:39]}  fxe6 {[%clk 0:02:14]} 20. Rf7 {[%clk 0:02:34]}  Qe8 {[%clk 0:02:14]} 21. Raf1 {[%clk 0:02:31]}  Nd8 {[%clk 0:02:04]} 22. R7f2 {[%clk 0:02:31]}  g5 {[%clk 0:02:04]} 23. g4 {[%clk 0:02:29]}  h4 {[%clk 0:02:00]} 24. Nf3 {[%clk 0:02:17]}  Qg6 {[%clk 0:01:43]} 25. Qd2 {[%clk 0:02:15]}  Rh7 {[%clk 0:01:35]} 26. Ne1 {[%clk 0:02:12]}  Rf7 {[%clk 0:01:25]} 27. Rxf7 {[%clk 0:02:07]}  Nxf7 {[%clk 0:01:21]} 28. Qf2 {[%clk 0:02:01]}  Nd8 {[%clk 0:01:22]} 29. Qd2 {[%clk 0:01:47]}  Nf7 {[%clk 0:01:20]} 30. Rf2 {[%clk 0:01:43]}  Rg7 {[%clk 0:01:17]} 31. Qc1 {[%clk 0:01:36]}  Kd7 {[%clk 0:01:13]} 32. Nf3 {[%clk 0:01:06]}  Rg8 {[%clk 0:01:05]} 33. Nd2 {[%clk 0:01:04]}  Bc2 {[%clk 0:00:59]} 34. Nxc4 {[%clk 0:01:04]}  Bd3 {[%clk 0:00:54]} 35. Nd2 {[%clk 0:01:04]}  Rf8 {[%clk 0:00:46]} 36. c4 {[%clk 0:01:01]}  Rc8 {[%clk 0:00:41]} 37. c5 {[%clk 0:01:00]}  b6 {[%clk 0:00:31]} 38. b4 {[%clk 0:00:57]}  a5 {[%clk 0:00:31]} 39. Qd1 {[%clk 0:00:57]}  axb4 {[%clk 0:00:28]} 40. Qa4+ {[%clk 0:00:52]}  b5 {[%clk 0:00:27]} 41. Qa6 {[%clk 0:00:52]}  bxa3 {[%clk 0:00:25]} 42. Qxa3 {[%clk 0:00:46]}  Nd8 {[%clk 0:00:23]} 43. Nb3 {[%clk 0:00:45]}  Nc6 {[%clk 0:00:21]} 44. Qa6 {[%clk 0:00:42]}  Rc7 {[%clk 0:00:19]} 45. Na5 {[%clk 0:00:39]}  b4 {[%clk 0:00:18]} 46. Qb6 {[%clk 0:00:37]}  Bd8 {[%clk 0:00:15]} 47. Nxc6 {[%clk 0:00:35]}  Rxc6 {[%clk 0:00:10]} 48. Qxb4 {[%clk 0:00:31]}  Be4 {[%clk 0:00:09]} 49. Bf1 {[%clk 0:00:31]}  Bd3 {[%clk 0:00:09]} 50. Qb7+ {[%clk 0:00:27]}  Rc7 {[%clk 0:00:08]} 51. c6+ {[%clk 0:00:23]}  Ke8 {[%clk 0:00:08]} 52. Qb4 {[%clk 0:00:23]}  Be7 {[%clk 0:00:06]} 53. Qb8+ {[%clk 0:00:23]}  Bd8 {[%clk 0:00:05]} 54. Rf8+ {[%clk 0:00:22]}  Ke7 {[%clk 0:00:06]} 55. Qxd8# {[%clk 0:00:22]} 1-0


[Site "https://www.chess.com"]

[Event "Titled Tuesday Blitz January 10 Late 2023"]
[White "Yang, Kevin"]
[Black "Savic, Miroslav"]
[WhiteFideId "30908485"]
[BlackFideId "14508494"]
[WhiteElo "2096"]
[BlackElo "2167"]
[Result "1-0"]
[Round "01"]
[TimeControl "180+2"]
[Date "2023.01.10"]
[WhiteClock "0:00:10"]
[BlackClock "0:00:09"]

1. d4 {[%clk 0:00:00]}  Nf6 {[%clk 0:00:00]} 2. Nc3 {[%clk 0:02:58]}  e6 {[%clk 0:02:58]} 3. a3 {[%clk 0:02:58]}  c5 {[%clk 0:02:58]} 4. Nf3 {[%clk 0:02:56]}  cxd4 {[%clk 0:02:56]} 5. Nxd4 {[%clk 0:02:54]}  a6 {[%clk 0:02:56]} 6. e4 {[%clk 0:02:54]}  Nc6 {[%clk 0:02:56]} 7. Nb3 {[%clk 0:02:51]}  d5 {[%clk 0:02:55]} 8. Bg5 {[%clk 0:02:51]}  d4 {[%clk 0:02:49]} 9. Ne2 {[%clk 0:02:49]}  e5 {[%clk 0:02:47]} 10. Ng3 {[%clk 0:02:47]}  Be7 {[%clk 0:02:47]} 11. Be2 {[%clk 0:02:44]}  h6 {[%clk 0:02:42]} 12. Bd2 {[%clk 0:02:31]}  Be6 {[%clk 0:02:41]} 13. O-O {[%clk 0:02:23]}  Bxb3 {[%clk 0:02:40]} 14. cxb3 {[%clk 0:02:21]}  d3 {[%clk 0:02:31]} 15. Bg4 {[%clk 0:02:22]}  Nd4 {[%clk 0:02:30]} 16. Bc3 {[%clk 0:02:19]}  Nxg4 {[%clk 0:02:25]} 17. Qxg4 {[%clk 0:02:15]}  Bf6 {[%clk 0:02:19]} 18. Rad1 {[%clk 0:02:14]}  Nxb3 {[%clk 0:01:42]} 19. Nh5 {[%clk 0:01:52]}  Qd7 {[%clk 0:01:39]} 20. Nxg7+ {[%clk 0:01:49]}  Bxg7 {[%clk 0:01:24]} 21. Qxg7 {[%clk 0:01:33]}  O-O-O {[%clk 0:01:20]} 22. Qxe5 {[%clk 0:01:33]}  Rhe8 {[%clk 0:01:19]} 23. Qf4 {[%clk 0:01:30]}  Qe6 {[%clk 0:01:12]} 24. Bf6 {[%clk 0:01:02]}  Rd7 {[%clk 0:01:07]} 25. Rc1+ {[%clk 0:00:54]}  Nxc1 {[%clk 0:01:04]} 26. Rxc1+ {[%clk 0:00:48]}  Qc6 {[%clk 0:00:59]} 27. Rxc6+ {[%clk 0:00:49]}  bxc6 {[%clk 0:00:59]} 28. Bc3 {[%clk 0:00:49]}  d2 {[%clk 0:01:00]} 29. Bxd2 {[%clk 0:00:46]}  Red8 {[%clk 0:00:48]} 30. Be1 {[%clk 0:00:46]}  Rd1 {[%clk 0:00:48]} 31. Kf1 {[%clk 0:00:36]}  Rb1 {[%clk 0:00:48]} 32. Qf6 {[%clk 0:00:35]}  Rdd1 {[%clk 0:00:47]} 33. Qxc6+ {[%clk 0:00:16]}  Kd8 {[%clk 0:00:40]} 34. Qb6+ {[%clk 0:00:16]}  Ke8 {[%clk 0:00:40]} 35. Qb4 {[%clk 0:00:16]}  Kd7 {[%clk 0:00:39]} 36. Ke2 {[%clk 0:00:16]}  Rd6 {[%clk 0:00:36]} 37. Bc3 {[%clk 0:00:16]}  Re6 {[%clk 0:00:29]} 38. Qb7+ {[%clk 0:00:14]}  Ke8 {[%clk 0:00:25]} 39. f4 {[%clk 0:00:14]}  Rg1 {[%clk 0:00:24]} 40. f5 {[%clk 0:00:12]}  Rxg2+ {[%clk 0:00:21]} 41. Kf3 {[%clk 0:00:11]}  Rgg6 {[%clk 0:00:15]} 42. fxg6 {[%clk 0:00:11]}  fxg6 {[%clk 0:00:14]} 43. Qc8+ {[%clk 0:00:10]}  Ke7 {[%clk 0:00:11]} 44. Bb4+ {[%clk 0:00:08]}  Kf6 {[%clk 0:00:10]} 45. Qf8+ {[%clk 0:00:09]}  Kg5 {[%clk 0:00:08]} 46. Qf4+ {[%clk 0:00:09]}  Kh5 {[%clk 0:00:09]} 47. Qg4# {[%clk 0:00:10]} 1-0


[Site "https://www.chess.com"]

[Event "Titled Tuesday Blitz January 10 Late 2023"]
[White "Rangel, Daniel"]
[Black "Kalaiyalahan, Akshaya"]
[WhiteFideId "2124475"]
[BlackFideId "422894"]
[WhiteElo "2207"]
[BlackElo "2155"]
[Result "1-0"]
[Round "01"]
[TimeControl "180+2"]
[Date "2023.01.10"]
[WhiteClock "0:00:02"]
[BlackClock "0:00:03"]

1. c4 {[%clk 0:00:00]}  Nf6 {[%clk 0:00:00]} 2. g3 {[%clk 0:02:59]}  c6 {[%clk 0:02:55]} 3. Bg2 {[%clk 0:02:58]}  d5 {[%clk 0:02:55]} 4. Nf3 {[%clk 0:02:53]}  e6 {[%clk 0:02:55]} 5. b3 {[%clk 0:02:54]}  Be7 {[%clk 0:02:52]} 6. O-O {[%clk 0:02:50]}  O-O {[%clk 0:02:52]} 7. Bb2 {[%clk 0:02:50]}  Nbd7 {[%clk 0:02:53]} 8. d3 {[%clk 0:02:50]}  b6 {[%clk 0:02:48]} 9. Nbd2 {[%clk 0:02:50]}  Bb7 {[%clk 0:02:47]} 10. e4 {[%clk 0:02:51]}  Nc5 {[%clk 0:02:47]} 11. e5 {[%clk 0:02:51]}  Ne8 {[%clk 0:02:35]} 12. d4 {[%clk 0:02:51]}  Nd3 {[%clk 0:02:31]} 13. Bc3 {[%clk 0:02:50]}  dxc4 {[%clk 0:02:26]} 14. bxc4 {[%clk 0:02:47]}  c5 {[%clk 0:02:24]} 15. Qc2 {[%clk 0:02:48]}  cxd4 {[%clk 0:02:23]} 16. Qxd3 {[%clk 0:02:20]}  dxc3 {[%clk 0:02:21]} 17. Qxc3 {[%clk 0:02:17]}  Nc7 {[%clk 0:02:20]} 18. Rad1 {[%clk 0:02:18]}  Qc8 {[%clk 0:02:08]} 19. h4 {[%clk 0:02:16]}  Na6 {[%clk 0:02:04]} 20. Qc2 {[%clk 0:02:16]}  Nc5 {[%clk 0:02:03]} 21. Rfe1 {[%clk 0:02:10]}  Rd8 {[%clk 0:01:48]} 22. Nf1 {[%clk 0:02:00]}  Qc7 {[%clk 0:01:46]} 23. Ne3 {[%clk 0:01:59]}  h6 {[%clk 0:01:44]} 24. Ng4 {[%clk 0:01:45]}  Bc6 {[%clk 0:01:42]} 25. Nd4 {[%clk 0:01:38]}  Ba4 {[%clk 0:01:33]} 26. Qe2 {[%clk 0:01:25]}  Bxd1 {[%clk 0:01:31]} 27. Rxd1 {[%clk 0:01:13]}  Rac8 {[%clk 0:01:30]} 28. Nc6 {[%clk 0:01:13]}  Rxd1+ {[%clk 0:01:28]} 29. Qxd1 {[%clk 0:01:04]}  Bf8 {[%clk 0:01:08]} 30. h5 {[%clk 0:01:05]}  Qd7 {[%clk 0:01:00]} 31. Qf3 {[%clk 0:00:59]}  a5 {[%clk 0:00:59]} 32. Ne3 {[%clk 0:00:50]}  Qd2 {[%clk 0:00:32]} 33. a3 {[%clk 0:00:36]}  Qc1+ {[%clk 0:00:20]} 34. Kh2 {[%clk 0:00:30]}  Qxa3 {[%clk 0:00:19]} 35. Nd4 {[%clk 0:00:31]}  a4 {[%clk 0:00:19]} 36. Nb5 {[%clk 0:00:25]}  Qb3 {[%clk 0:00:18]} 37. Qf4 {[%clk 0:00:25]}  a3 {[%clk 0:00:18]} 38. Nd6 {[%clk 0:00:14]}  Rc7 {[%clk 0:00:17]} 39. Ng4 {[%clk 0:00:13]}  Nd3 {[%clk 0:00:16]} 40. Qe4 {[%clk 0:00:08]}  Nc5 {[%clk 0:00:14]} 41. Qf4 {[%clk 0:00:07]}  a2 {[%clk 0:00:11]} 42. Ne8 {[%clk 0:00:07]}  a1=Q {[%clk 0:00:09]} 43. Ngf6+ {[%clk 0:00:06]}  Kh8 {[%clk 0:00:07]} 44. Nxc7 {[%clk 0:00:05]}  Qbb1 {[%clk 0:00:06]} 45. Nce8 {[%clk 0:00:05]}  Qf5 {[%clk 0:00:04]} 46. Qd2 {[%clk 0:00:03]}  Qxh5+ {[%clk 0:00:03]} 47. Nxh5 {[%clk 0:00:02]} 1-0


[Site "https://www.chess.com"]

[Event "Titled Tuesday Blitz January 10 Late 2023"]
[White "MunichMouse"]
[Black "Krishnan, Varun"]
[BlackFideId "5054508"]
[WhiteElo "1993"]
[BlackElo "2341"]
[Result "0-1"]
[Round "01"]
[TimeControl "180+2"]
[Date "2023.01.10"]
[WhiteClock "0:00:07"]
[BlackClock "0:00:31"]

1. d4 {[%clk 0:00:00]}  Nf6 {[%clk 0:00:00]} 2. c4 {[%clk 0:02:54]}  e6 {[%clk 0:02:47]} 3. Nf3 {[%clk 0:02:53]}  b6 {[%clk 0:02:47]} 4. g3 {[%clk 0:02:53]}  Bb7 {[%clk 0:02:46]} 5. Bg2 {[%clk 0:02:53]}  Bb4+ {[%clk 0:02:46]} 6. Bd2 {[%clk 0:02:54]}  a5 {[%clk 0:02:46]} 7. O-O {[%clk 0:02:53]}  O-O {[%clk 0:02:44]} 8. a3 {[%clk 0:02:52]}  Be7 {[%clk 0:02:44]} 9. Nc3 {[%clk 0:02:53]}  d5 {[%clk 0:02:43]} 10. Ne5 {[%clk 0:02:49]}  Nbd7 {[%clk 0:02:43]} 11. Bf4 {[%clk 0:02:49]}  Ne4 {[%clk 0:02:41]} 12. cxd5 {[%clk 0:02:47]}  exd5 {[%clk 0:02:35]} 13. Nxd7 {[%clk 0:01:57]}  Nxc3 {[%clk 0:02:32]} 14. bxc3 {[%clk 0:01:51]}  Qxd7 {[%clk 0:02:22]} 15. c4 {[%clk 0:01:49]}  Bc6 {[%clk 0:02:22]} 16. cxd5 {[%clk 0:01:38]}  Bxd5 {[%clk 0:02:09]} 17. e4 {[%clk 0:01:18]}  Bb7 {[%clk 0:02:10]} 18. a4 {[%clk 0:01:19]}  Ba6 {[%clk 0:02:10]} 19. Re1 {[%clk 0:01:12]}  Bb4 {[%clk 0:02:06]} 20. Re3 {[%clk 0:01:12]}  c5 {[%clk 0:02:06]} 21. e5 {[%clk 0:01:01]}  cxd4 {[%clk 0:01:56]} 22. Bxa8 {[%clk 0:00:45]}  Rxa8 {[%clk 0:01:49]} 23. Rc1 {[%clk 0:00:44]}  Rd8 {[%clk 0:01:50]} 24. e6 {[%clk 0:00:25]}  fxe6 {[%clk 0:01:40]} 25. Rc7 {[%clk 0:00:21]}  Qd5 {[%clk 0:01:37]} 26. Qg4 {[%clk 0:00:21]}  Bf8 {[%clk 0:01:19]} 27. Be5 {[%clk 0:00:20]}  Rd7 {[%clk 0:01:17]} 28. Rxd7 {[%clk 0:00:18]}  Qxd7 {[%clk 0:01:03]} 29. Qxd4 {[%clk 0:00:14]}  Qc6 {[%clk 0:01:03]} 30. Qe4 {[%clk 0:00:15]}  Qd7 {[%clk 0:00:50]} 31. Rc3 {[%clk 0:00:11]}  Qd1+ {[%clk 0:00:44]} 32. Kg2 {[%clk 0:00:07]}  Bf1+ {[%clk 0:00:31]} 0-1


[Site "https://www.chess.com"]

[Event "Titled Tuesday Blitz January 10 Late 2023"]
[White "Tokhirjonova, Gulrukhbegim"]
[Black "Curtis, John"]
[WhiteFideId "14203626"]
[BlackFideId "3200256"]
[WhiteElo "2340"]
[BlackElo "2292"]
[Result "1-0"]
[Round "01"]
[TimeControl "180+2"]
[Date "2023.01.10"]
[WhiteClock "0:02:44"]
[BlackClock "0:02:32"]

1. e4 {[%clk 0:00:00]}  e6 {[%clk 0:00:00]} 2. d4 {[%clk 0:02:53]}  d5 {[%clk 0:02:55]} 3. e5 {[%clk 0:02:52]}  c5 {[%clk 0:02:54]} 4. c3 {[%clk 0:02:52]}  Bd7 {[%clk 0:02:53]} 5. Nf3 {[%clk 0:02:52]}  Qb6 {[%clk 0:02:52]} 6. Be2 {[%clk 0:02:52]}  Bb5 {[%clk 0:02:52]} 7. O-O {[%clk 0:02:50]}  Bxe2 {[%clk 0:02:52]} 8. Qxe2 {[%clk 0:02:49]}  cxd4 {[%clk 0:02:52]} 9. Nxd4 {[%clk 0:02:50]}  Ne7 {[%clk 0:02:52]} 10. Be3 {[%clk 0:02:49]}  Nec6 {[%clk 0:02:51]} 11. Nxe6 {[%clk 0:02:49]}  Qa5 {[%clk 0:02:46]} 12. b4 {[%clk 0:02:44]}  Nxb4 {[%clk 0:02:40]} 13. cxb4 {[%clk 0:02:44]}  Bxb4 {[%clk 0:02:32]} 14. Nxg7+ {[%clk 0:02:44]} 1-0


[Site "https://www.chess.com"]

[Event "Titled Tuesday Blitz January 10 Late 2023"]
[White "Rodrigues, Leonardo De Miranda"]
[Black "TheKnightOfBosnia"]
[WhiteFideId "2108658"]
[WhiteElo "2112"]
[BlackElo "2537"]
[Result "0-1"]
[Round "01"]
[TimeControl "180+2"]
[Date "2023.01.10"]
[WhiteClock "0:00:06"]
[BlackClock "0:00:27"]

1. e4 {[%clk 0:00:00]}  e5 {[%clk 0:00:00]} 2. Nc3 {[%clk 0:02:59]}  Nf6 {[%clk 0:02:59]} 3. Nf3 {[%clk 0:02:58]}  Nc6 {[%clk 0:02:59]} 4. Bb5 {[%clk 0:02:54]}  Bb4 {[%clk 0:02:58]} 5. O-O {[%clk 0:02:53]}  d6 {[%clk 0:02:59]} 6. d3 {[%clk 0:02:51]}  Bxc3 {[%clk 0:02:58]} 7. bxc3 {[%clk 0:02:50]}  O-O {[%clk 0:02:58]} 8. Bg5 {[%clk 0:02:50]}  Bd7 {[%clk 0:02:58]} 9. Re1 {[%clk 0:02:49]}  Ne7 {[%clk 0:02:58]} 10. Bxd7 {[%clk 0:02:47]}  Nxd7 {[%clk 0:02:58]} 11. Rb1 {[%clk 0:02:46]}  Rb8 {[%clk 0:02:57]} 12. d4 {[%clk 0:02:44]}  f6 {[%clk 0:02:54]} 13. Be3 {[%clk 0:02:42]}  a5 {[%clk 0:02:53]} 14. dxe5 {[%clk 0:02:42]}  Nxe5 {[%clk 0:02:50]} 15. Nxe5 {[%clk 0:02:35]}  fxe5 {[%clk 0:02:49]} 16. Ba7 {[%clk 0:02:32]}  Ra8 {[%clk 0:02:49]} 17. Rxb7 {[%clk 0:02:30]}  Qc8 {[%clk 0:02:47]} 18. Qb1 {[%clk 0:02:29]}  Nc6 {[%clk 0:02:42]} 19. Qb3+ {[%clk 0:02:25]}  Kh8 {[%clk 0:02:32]} 20. Be3 {[%clk 0:02:16]}  Nb4 {[%clk 0:02:26]} 21. Rb5 {[%clk 0:02:15]}  Qa6 {[%clk 0:02:09]} 22. a4 {[%clk 0:02:02]}  Nc6 {[%clk 0:02:06]} 23. h3 {[%clk 0:01:56]}  Na7 {[%clk 0:02:02]} 24. Rb7 {[%clk 0:01:44]}  Rfc8 {[%clk 0:01:47]} 25. Rb1 {[%clk 0:01:38]}  Nc6 {[%clk 0:01:34]} 26. Qf7 {[%clk 0:01:31]}  Rab8 {[%clk 0:01:31]} 27. Rxb8 {[%clk 0:01:22]}  Nxb8 {[%clk 0:01:02]} 28. Bh6 {[%clk 0:01:15]}  gxh6 {[%clk 0:01:03]} 29. Qf6+ {[%clk 0:00:53]}  Kg8 {[%clk 0:00:53]} 30. Qe6+ {[%clk 0:00:50]}  Kf8 {[%clk 0:00:54]} 31. c4 {[%clk 0:00:43]}  Nc6 {[%clk 0:00:51]} 32. Qxh6+ {[%clk 0:00:32]}  Ke8 {[%clk 0:00:45]} 33. Qh5+ {[%clk 0:00:20]}  Kd8 {[%clk 0:00:44]} 34. Rb3 {[%clk 0:00:19]}  Qxc4 {[%clk 0:00:42]} 35. Qg5+ {[%clk 0:00:13]}  Ne7 {[%clk 0:00:40]} 36. Rf3 {[%clk 0:00:11]}  Kd7 {[%clk 0:00:39]} 37. Qg4+ {[%clk 0:00:09]}  Qe6 {[%clk 0:00:37]} 38. Qh4 {[%clk 0:00:08]}  Rb8 {[%clk 0:00:37]} 39. Rf6 {[%clk 0:00:06]}  Rb1+ {[%clk 0:00:32]} 40. Kh2 {[%clk 0:00:06]}  Qc4 {[%clk 0:00:32]} 41. Qg4+ {[%clk 0:00:06]}  Kc6 {[%clk 0:00:30]} 42. Rh6 {[%clk 0:00:06]}  Qf7 {[%clk 0:00:27]} 0-1


[Site "https://www.chess.com"]